[Event "*** Titled Tuesday Blitz"]
[Site "Chess.com"]
[Date "2020.04.07"]
[Round "7"]
[White "Chessterra87"]
[Black "hansen"]
[Result "0-1"]
[WhiteElo "2333"]
[BlackElo "3000"]
[TimeControl "180+1"]
[EndTime "14:17:21 PDT"]
[Termination "hansen won by resignation"]

1. e4 {[%clk 0:03:00.9]} 1... c5 {[%clk 0:02:59.4]} 2. c3 {[%clk 0:02:57.1]}
2... Nf6 {[%clk 0:02:59.3]} 3. e5 {[%clk 0:02:57.2]} 3... Nd5 {[%clk 0:02:59.7]}
4. Bc4 {[%clk 0:02:57.3]} 4... Nb6 {[%clk 0:02:59]} 5. Bb3 {[%clk 0:02:57.4]}
5... c4 {[%clk 0:02:59.4]} 6. Bc2 {[%clk 0:02:55.3]} 6... Nc6 {[%clk 0:02:58.3]}
7. Nf3 {[%clk 0:02:55.5]} 7... d5 {[%clk 0:02:51.3]} 8. exd6 {[%clk 0:02:49.8]}
8... Qxd6 {[%clk 0:02:44.7]} 9. O-O {[%clk 0:02:48.5]} 9... Bg4 {[%clk
0:02:44.6]} 10. b3 {[%clk 0:02:37]} 10... cxb3 {[%clk 0:02:43.3]} 11. Bxb3
{[%clk 0:02:25.9]} 11... Qf6 {[%clk 0:02:39.5]} 12. d4 {[%clk 0:02:09.7]} 12...
e6 {[%clk 0:02:37.5]} 13. Nbd2 {[%clk 0:02:00]} 13... Be7 {[%clk 0:02:33.7]} 14.
Ne4 {[%clk 0:01:50]} 14... Qg6 {[%clk 0:02:31.7]} 15. Bc2 {[%clk 0:01:44.4]}
15... Bf5 {[%clk 0:02:26.6]} 16. Re1 {[%clk 0:01:29.6]} 16... O-O {[%clk
0:02:25.8]} 17. Bg5 {[%clk 0:01:09.3]} 17... Bxg5 {[%clk 0:02:22.9]} 18. Nfxg5
{[%clk 0:01:07.9]} 18... Nd5 {[%clk 0:02:17.8]} 19. Qf3 {[%clk 0:00:53.2]} 19...
h6 {[%clk 0:02:15]} 20. Nh3 {[%clk 0:00:50.8]} 20... Rfd8 {[%clk 0:02:06.3]} 21.
Nf4 {[%clk 0:00:46.3]} 21... Nxf4 {[%clk 0:02:05.1]} 22. Qxf4 {[%clk 0:00:47.2]}
22... Rac8 {[%clk 0:02:02.5]} 23. Rac1 {[%clk 0:00:40.3]} 23... Ne7 {[%clk
0:01:51.7]} 24. Nd6 {[%clk 0:00:32.6]} 24... Bxc2 {[%clk 0:01:48.1]} 25. Nxc8
{[%clk 0:00:32.8]} 25... Rxc8 {[%clk 0:01:47.2]} 26. Qd6 {[%clk 0:00:28.9]}
26... Nd5 {[%clk 0:01:26.9]} 27. c4 {[%clk 0:00:21.4]} 27... Rxc4 {[%clk
0:01:22.4]} 28. Qb8+ {[%clk 0:00:20.8]} 28... Kh7 {[%clk 0:01:22.6]} 29. Qxb7
{[%clk 0:00:21.1]} 29... Be4 {[%clk 0:01:22.5]} 30. g3 {[%clk 0:00:18]} 30...
Rxc1 {[%clk 0:01:11]} 31. Rxc1 {[%clk 0:00:17.9]} 31... Nf4 {[%clk 0:01:11.6]}
32. Qb3 {[%clk 0:00:15.4]} 32... Ne2+ {[%clk 0:01:11.6]} 0-1

[Event "*** Titled Tuesday Blitz"]
[Site "Chess.com"]
[Date "2020.04.07"]
[Round "7"]
[White "vlad_Sid"]
[Black "plumalka"]
[Result "1-0"]
[WhiteElo "2640"]
[BlackElo "2409"]
[TimeControl "180+1"]
[EndTime "14:17:24 PDT"]
[Termination "vlad_Sid won by checkmate"]

1. c4 {[%clk 0:03:00.5]} 1... c5 {[%clk 0:02:56.1]} 2. g3 {[%clk 0:03:00.7]}
2... g6 {[%clk 0:02:55.5]} 3. Bg2 {[%clk 0:03:01.2]} 3... Bg7 {[%clk 0:02:55.5]}
4. Nc3 {[%clk 0:03:02.1]} 4... Nc6 {[%clk 0:02:55.8]} 5. Nf3 {[%clk 0:03:02.4]}
5... e5 {[%clk 0:02:55.7]} 6. O-O {[%clk 0:03:01.3]} 6... Nge7 {[%clk
0:02:55.6]} 7. Ne1 {[%clk 0:03:01.8]} 7... d6 {[%clk 0:02:54.7]} 8. Nc2 {[%clk
0:03:01.9]} 8... Be6 {[%clk 0:02:55]} 9. Ne3 {[%clk 0:03:01.5]} 9... a6 {[%clk
0:02:55.5]} 10. d3 {[%clk 0:02:58.8]} 10... O-O {[%clk 0:02:54.9]} 11. Rb1
{[%clk 0:02:56.9]} 11... Rb8 {[%clk 0:02:54.7]} 12. a3 {[%clk 0:02:55.1]} 12...
b5 {[%clk 0:02:54.4]} 13. Bd2 {[%clk 0:02:55.2]} 13... Nd4 {[%clk 0:02:49.1]}
14. Ncd5 {[%clk 0:02:49.9]} 14... f5 {[%clk 0:02:43.3]} 15. Nxe7+ {[%clk
0:02:48.5]} 15... Qxe7 {[%clk 0:02:44.2]} 16. Nd5 {[%clk 0:02:49.4]} 16... Bxd5
{[%clk 0:02:29.1]} 17. Bxd5+ {[%clk 0:02:47.3]} 17... Kh8 {[%clk 0:02:29]} 18.
b4 {[%clk 0:02:36.4]} 18... f4 {[%clk 0:02:09.9]} 19. e3 {[%clk 0:02:31.2]}
19... fxe3 {[%clk 0:02:01.8]} 20. fxe3 {[%clk 0:02:32.1]} 20... Rxf1+ {[%clk
0:01:57.6]} 21. Qxf1 {[%clk 0:02:33]} 21... Rf8 {[%clk 0:01:57.5]} 22. Qd1
{[%clk 0:02:26.3]} 22... Nf5 {[%clk 0:01:53.7]} 23. Qe2 {[%clk 0:02:19.7]} 23...
bxc4 {[%clk 0:01:48.4]} 24. dxc4 {[%clk 0:02:17.2]} 24... cxb4 {[%clk
0:01:29.7]} 25. axb4 {[%clk 0:02:15.3]} 25... Bh6 {[%clk 0:01:28.7]} 26. Rf1
{[%clk 0:02:09.3]} 26... Qa7 {[%clk 0:01:25.1]} 27. g4 {[%clk 0:02:08]} 27...
Ne7 {[%clk 0:01:00.3]} 28. Rxf8+ {[%clk 0:02:08.9]} 28... Bxf8 {[%clk
0:01:01.2]} 29. Qf3 {[%clk 0:02:07.7]} 29... Bg7 {[%clk 0:00:58.2]} 30. Qf7
{[%clk 0:02:06.5]} 30... Qd7 {[%clk 0:00:51.4]} 31. h3 {[%clk 0:02:02]} 31...
Qd8 {[%clk 0:00:51.3]} 32. Be6 {[%clk 0:01:55.5]} 32... h6 {[%clk 0:00:38.2]}
33. Be1 {[%clk 0:01:47.6]} 33... Nc6 {[%clk 0:00:28.8]} 34. b5 {[%clk
0:01:45.4]} 34... axb5 {[%clk 0:00:28]} 35. cxb5 {[%clk 0:01:46.3]} 35... Na5
{[%clk 0:00:23.1]} 36. Bxa5 {[%clk 0:01:39.8]} 36... Qxa5 {[%clk 0:00:24]} 37.
Qg8# {[%clk 0:01:39.6]} 1-0

[Event "*** Titled Tuesday Blitz"]
[Site "Chess.com"]
[Date "2020.04.07"]
[Round "7"]
[White "dmosesov"]
[Black "AlexOstrovskiy"]
[Result "0-1"]
[WhiteElo "2491"]
[BlackElo "2614"]
[TimeControl "180+1"]
[EndTime "14:17:25 PDT"]
[Termination "AlexOstrovskiy won by resignation"]

1. d4 {[%clk 0:03:00.7]} 1... d5 {[%clk 0:02:59.5]} 2. c4 {[%clk 0:03:00.8]}
2... dxc4 {[%clk 0:03:00.4]} 3. e4 {[%clk 0:03:00.3]} 3... Nc6 {[%clk
0:02:59.6]} 4. Nf3 {[%clk 0:02:54.3]} 4... Bg4 {[%clk 0:02:59.2]} 5. d5 {[%clk
0:02:54.8]} 5... Ne5 {[%clk 0:02:58.3]} 6. Bf4 {[%clk 0:02:55.2]} 6... Ng6
{[%clk 0:02:57.2]} 7. Be3 {[%clk 0:02:51.8]} 7... e5 {[%clk 0:02:53.5]} 8. Bxc4
{[%clk 0:02:48.5]} 8... a6 {[%clk 0:02:53.6]} 9. Nc3 {[%clk 0:02:44.3]} 9... Nf6
{[%clk 0:02:53.1]} 10. h3 {[%clk 0:02:28.2]} 10... Bd7 {[%clk 0:02:52.6]} 11.
Rc1 {[%clk 0:02:22.6]} 11... Bd6 {[%clk 0:02:51.8]} 12. O-O {[%clk 0:02:17.9]}
12... O-O {[%clk 0:02:51.6]} 13. Be2 {[%clk 0:02:17.9]} 13... Qe7 {[%clk
0:02:44.3]} 14. Nd2 {[%clk 0:02:17.6]} 14... b5 {[%clk 0:02:36.4]} 15. a3 {[%clk
0:02:16.7]} 15... Nf4 {[%clk 0:02:33.7]} 16. Bf3 {[%clk 0:01:56.5]} 16... g5
{[%clk 0:02:26.4]} 17. Nb3 {[%clk 0:01:25.9]} 17... Kh8 {[%clk 0:02:21.9]} 18.
Na5 {[%clk 0:01:25.2]} 18... Rg8 {[%clk 0:02:17.4]} 19. Bg4 {[%clk 0:01:16.5]}
19... Bxg4 {[%clk 0:02:00.3]} 20. hxg4 {[%clk 0:01:17.4]} 20... Qd7 {[%clk
0:02:00.9]} 21. f3 {[%clk 0:00:51.2]} 21... h5 {[%clk 0:02:00.2]} 22. gxh5
{[%clk 0:00:48.7]} 22... g4 {[%clk 0:02:00.7]} 23. Nc6 {[%clk 0:00:19.1]} 23...
gxf3 {[%clk 0:01:42.5]} 24. Qxf3 {[%clk 0:00:20]} 24... Rxg2+ {[%clk 0:01:41.1]}
25. Kh1 {[%clk 0:00:20.2]} 25... Rag8 {[%clk 0:01:35.3]} 26. Bxf4 {[%clk
0:00:17.8]} 26... exf4 {[%clk 0:01:33.4]} 27. Rg1 {[%clk 0:00:14.6]} 27... R8g3
{[%clk 0:01:20.5]} 28. Qxg2 {[%clk 0:00:15]} 28... Rxg2 {[%clk 0:01:17.1]} 29.
Rxg2 {[%clk 0:00:15.9]} 29... Qh3+ {[%clk 0:01:08.8]} 0-1

[Event "*** Titled Tuesday Blitz"]
[Site "Chess.com"]
[Date "2020.04.07"]
[Round "7"]
[White "rubhani"]
[Black "AndreyNeves"]
[Result "1-0"]
[WhiteElo "2476"]
[BlackElo "2201"]
[TimeControl "180+1"]
[EndTime "14:17:27 PDT"]
[Termination "rubhani won by checkmate"]

1. b4 {[%clk 0:03:00.9]} 1... Nf6 {[%clk 0:02:58.1]} 2. Bb2 {[%clk 0:02:59.8]}
2... g6 {[%clk 0:02:58.3]} 3. c4 {[%clk 0:02:56.9]} 3... Bg7 {[%clk 0:02:58]} 4.
Nf3 {[%clk 0:02:57.3]} 4... O-O {[%clk 0:02:57.8]} 5. e3 {[%clk 0:02:57.8]} 5...
a5 {[%clk 0:02:50]} 6. a3 {[%clk 0:02:57.6]} 6... axb4 {[%clk 0:02:50]} 7. axb4
{[%clk 0:02:58.5]} 7... Rxa1 {[%clk 0:02:49.6]} 8. Bxa1 {[%clk 0:02:59.4]} 8...
d6 {[%clk 0:02:47.7]} 9. Be2 {[%clk 0:02:58.6]} 9... e5 {[%clk 0:02:46.9]} 10.
O-O {[%clk 0:02:57.5]} 10... c6 {[%clk 0:02:47]} 11. Nc3 {[%clk 0:02:50.1]}
11... h6 {[%clk 0:02:40.2]} 12. Qb3 {[%clk 0:02:48.3]} 12... Be6 {[%clk
0:02:38.9]} 13. b5 {[%clk 0:02:38]} 13... c5 {[%clk 0:02:39]} 14. d4 {[%clk
0:02:16.5]} 14... exd4 {[%clk 0:02:35.3]} 15. exd4 {[%clk 0:02:16.1]} 15... Nh5
{[%clk 0:02:27.7]} 16. Rd1 {[%clk 0:02:01.9]} 16... Nf4 {[%clk 0:02:25.9]} 17.
Bf1 {[%clk 0:02:01.2]} 17... Bg4 {[%clk 0:02:20]} 18. Ne4 {[%clk 0:01:48.5]}
18... Re8 {[%clk 0:02:07.5]} 19. Ng3 {[%clk 0:01:28.3]} 19... Qe7 {[%clk
0:01:52.1]} 20. h3 {[%clk 0:01:26.1]} 20... Bxf3 {[%clk 0:01:38.5]} 21. Qxf3
{[%clk 0:01:25.5]} 21... g5 {[%clk 0:01:33]} 22. Nf5 {[%clk 0:01:17.4]} 22...
Qd7 {[%clk 0:01:06.7]} 23. Nxg7 {[%clk 0:01:15.5]} 23... Kxg7 {[%clk 0:01:06.9]}
24. dxc5+ {[%clk 0:01:15.1]} 24... f6 {[%clk 0:00:57.7]} 25. Rxd6 {[%clk
0:01:14.1]} 25... Qc7 {[%clk 0:00:47.7]} 26. Rxf6 {[%clk 0:01:12.9]} 26... Kg8
{[%clk 0:00:43.4]} 27. Rxh6 {[%clk 0:01:09.5]} 27... Qxc5 {[%clk 0:00:35]} 28.
Qxb7 {[%clk 0:01:04.5]} 28... Re1 {[%clk 0:00:13.4]} 29. Qg7# {[%clk 0:01:03.2]}
1-0

[Event "*** Titled Tuesday Blitz"]
[Site "Chess.com"]
[Date "2020.04.07"]
[Round "7"]
[White "VeraLevel"]
[Black "jefferyx"]
[Result "1-0"]
[WhiteElo "2739"]
[BlackElo "2896"]
[TimeControl "180+1"]
[EndTime "14:17:28 PDT"]
[Termination "VeraLevel won by resignation"]

1. d4 {[%clk 0:03:00.9]} 1... d5 {[%clk 0:02:59.2]} 2. c4 {[%clk 0:03:01.3]}
2... dxc4 {[%clk 0:03:00.1]} 3. Nf3 {[%clk 0:03:01.2]} 3... Nf6 {[%clk
0:02:59.6]} 4. e3 {[%clk 0:03:01.8]} 4... e6 {[%clk 0:03:00.4]} 5. Bxc4 {[%clk
0:03:02.2]} 5... c5 {[%clk 0:03:01.1]} 6. O-O {[%clk 0:03:02.2]} 6... Nc6 {[%clk
0:03:01.8]} 7. Qe2 {[%clk 0:02:59.7]} 7... a6 {[%clk 0:03:01.4]} 8. a4 {[%clk
0:02:59.2]} 8... Qc7 {[%clk 0:02:57.9]} 9. Rd1 {[%clk 0:02:59.2]} 9... Bd6
{[%clk 0:02:55.6]} 10. dxc5 {[%clk 0:02:57.3]} 10... Bxc5 {[%clk 0:02:56.5]} 11.
b3 {[%clk 0:02:57.3]} 11... O-O {[%clk 0:02:55.9]} 12. Bb2 {[%clk 0:02:57.8]}
12... Be7 {[%clk 0:02:51.9]} 13. Nbd2 {[%clk 0:02:56.6]} 13... b6 {[%clk
0:02:52.2]} 14. Rac1 {[%clk 0:02:54.7]} 14... Bb7 {[%clk 0:02:52.3]} 15. Bd3
{[%clk 0:02:11.5]} 15... Qb8 {[%clk 0:02:27.8]} 16. Ne4 {[%clk 0:02:11.1]} 16...
Nd5 {[%clk 0:02:28]} 17. Nfg5 {[%clk 0:01:44.7]} 17... h6 {[%clk 0:02:10.2]} 18.
Nxe6 {[%clk 0:01:43.4]} 18... fxe6 {[%clk 0:02:06]} 19. Qg4 {[%clk 0:01:44]}
19... Rf7 {[%clk 0:02:00.6]} 20. Qxe6 {[%clk 0:01:15.2]} 20... Na5 {[%clk
0:01:51.4]} 21. Qg6 {[%clk 0:01:10.8]} 21... Bb4 {[%clk 0:01:04.4]} 22. Ng5
{[%clk 0:00:53.9]} 22... hxg5 {[%clk 0:01:00.3]} 23. Qh7+ {[%clk 0:00:54.3]}
23... Kf8 {[%clk 0:01:00.8]} 24. Bg6 {[%clk 0:00:54.8]} 24... Rc7 {[%clk
0:00:24.2]} 25. Qh8+ {[%clk 0:00:52.8]} 25... Ke7 {[%clk 0:00:24.4]} 26. Qxg7+
{[%clk 0:00:53.3]} 26... Ke6 {[%clk 0:00:24.4]} 27. Qe5+ {[%clk 0:00:48.4]} 1-0

[Event "*** Titled Tuesday Blitz"]
[Site "Chess.com"]
[Date "2020.04.07"]
[Round "7"]
[White "econpower"]
[Black "Mops_2004"]
[Result "0-1"]
[WhiteElo "2719"]
[BlackElo "2563"]
[TimeControl "180+1"]
[EndTime "14:17:32 PDT"]
[Termination "Mops_2004 won by resignation"]

1. c4 {[%clk 0:01:12.2]} 1... g6 {[%clk 0:02:58.2]} 2. g3 {[%clk 0:01:12.5]}
2... Bg7 {[%clk 0:02:58]} 3. Bg2 {[%clk 0:01:13.4]} 3... Nf6 {[%clk 0:02:56.9]}
4. Nc3 {[%clk 0:01:14]} 4... O-O {[%clk 0:02:56.6]} 5. e3 {[%clk 0:01:14.9]}
5... e5 {[%clk 0:02:51.7]} 6. Nge2 {[%clk 0:01:15.3]} 6... c6 {[%clk 0:02:49.6]}
7. O-O {[%clk 0:01:16.2]} 7... d6 {[%clk 0:02:44.3]} 8. d3 {[%clk 0:01:16.3]}
8... a5 {[%clk 0:02:43.6]} 9. h3 {[%clk 0:01:15.8]} 9... Na6 {[%clk 0:02:42.9]}
10. Kh2 {[%clk 0:01:13.9]} 10... Re8 {[%clk 0:02:38.7]} 11. g4 {[%clk
0:01:13.3]} 11... Bxg4 {[%clk 0:02:28.4]} 12. hxg4 {[%clk 0:01:10.7]} 12...
Nxg4+ {[%clk 0:02:29.3]} 13. Kg3 {[%clk 0:01:09.7]} 13... f5 {[%clk 0:02:00.5]}
14. f3 {[%clk 0:01:08.7]} 14... f4+ {[%clk 0:01:22.7]} 15. exf4 {[%clk
0:01:07.6]} 15... exf4+ {[%clk 0:01:23.6]} 16. Bxf4 {[%clk 0:00:55.7]} 16... Ne3
{[%clk 0:01:23.4]} 17. Bxe3 {[%clk 0:00:55.7]} 17... Rxe3 {[%clk 0:01:24.3]} 18.
Rh1 {[%clk 0:00:53.2]} 18... Qb6 {[%clk 0:01:20.4]} 19. d4 {[%clk 0:00:46.6]}
19... Rae8 {[%clk 0:01:12.3]} 20. Qd2 {[%clk 0:00:45.8]} 20... Qd8 {[%clk
0:01:02.2]} 21. Kf2 {[%clk 0:00:41.3]} 21... d5 {[%clk 0:01:00.6]} 22. cxd5
{[%clk 0:00:36.5]} 22... cxd5 {[%clk 0:01:01.5]} 23. Qxe3 {[%clk 0:00:33.7]}
23... Rxe3 {[%clk 0:01:01]} 24. Kxe3 {[%clk 0:00:34.6]} 24... Nb4 {[%clk
0:01:01.8]} 25. Kf2 {[%clk 0:00:33.3]} 25... Nd3+ {[%clk 0:01:01.1]} 26. Ke3
{[%clk 0:00:33.3]} 26... Nxb2 {[%clk 0:01:00.1]} 27. Rab1 {[%clk 0:00:27.5]}
27... Qg5+ {[%clk 0:00:59.2]} 28. Nf4 {[%clk 0:00:22.1]} 28... Nc4+ {[%clk
0:00:57.9]} 0-1

[Event "*** Titled Tuesday Blitz"]
[Site "Chess.com"]
[Date "2020.04.07"]
[Round "7"]
[White "Caclox"]
[Black "DerKnipser"]
[Result "1-0"]
[WhiteElo "2484"]
[BlackElo "2311"]
[TimeControl "180+1"]
[EndTime "14:17:32 PDT"]
[Termination "Caclox won by resignation"]

1. e4 {[%clk 0:03:00.9]} 1... c5 {[%clk 0:02:59.3]} 2. Nf3 {[%clk 0:03:00.5]}
2... d6 {[%clk 0:03:00]} 3. d4 {[%clk 0:02:58.6]} 3... cxd4 {[%clk 0:03:00.9]}
4. Nxd4 {[%clk 0:02:59.5]} 4... Nf6 {[%clk 0:03:01.7]} 5. Nc3 {[%clk 0:02:58.6]}
5... g6 {[%clk 0:03:01.8]} 6. Be3 {[%clk 0:02:56.8]} 6... Bg7 {[%clk 0:03:02.3]}
7. f3 {[%clk 0:02:57.3]} 7... O-O {[%clk 0:03:02.9]} 8. Qd2 {[%clk 0:02:57.5]}
8... Nc6 {[%clk 0:03:03.4]} 9. Bc4 {[%clk 0:02:58]} 9... Bd7 {[%clk 0:03:03.8]}
10. O-O-O {[%clk 0:02:57.7]} 10... Ne5 {[%clk 0:03:04.6]} 11. Bb3 {[%clk
0:02:57.7]} 11... Qa5 {[%clk 0:03:05.5]} 12. h4 {[%clk 0:02:57.4]} 12... Rfc8
{[%clk 0:03:06.1]} 13. Kb1 {[%clk 0:02:57.4]} 13... Nc4 {[%clk 0:03:05.8]} 14.
Bxc4 {[%clk 0:02:57.4]} 14... Rxc4 {[%clk 0:03:06.7]} 15. Nb3 {[%clk 0:02:57.4]}
15... Qa6 {[%clk 0:03:06.8]} 16. g4 {[%clk 0:02:57.9]} 16... Rxc3 {[%clk
0:02:54.3]} 17. bxc3 {[%clk 0:02:54.9]} 17... Bxg4 {[%clk 0:02:53.6]} 18. Rdf1
{[%clk 0:02:32.5]} 18... Rc8 {[%clk 0:02:42.5]} 19. Bd4 {[%clk 0:02:26.5]} 19...
Be6 {[%clk 0:02:40.7]} 20. h5 {[%clk 0:02:24.8]} 20... Qb5 {[%clk 0:02:15.6]}
21. hxg6 {[%clk 0:02:22]} 21... hxg6 {[%clk 0:02:01.4]} 22. Rfg1 {[%clk
0:02:17.8]} 22... Bc4 {[%clk 0:01:44.1]} 23. Rg5 {[%clk 0:01:57.9]} 23... e5
{[%clk 0:01:44.1]} 24. Be3 {[%clk 0:01:56.6]} 24... a5 {[%clk 0:01:44.1]} 25.
Ka1 {[%clk 0:01:52.6]} 25... a4 {[%clk 0:01:29.1]} 26. Nc1 {[%clk 0:01:52]}
26... Nd7 {[%clk 0:01:11.8]} 27. Qxd6 {[%clk 0:01:44.6]} 27... Bf8 {[%clk
0:01:09.1]} 28. Rxg6+ {[%clk 0:01:37.1]} 28... fxg6 {[%clk 0:01:07.1]} 29. Qxg6+
{[%clk 0:01:38]} 29... Bg7 {[%clk 0:01:07]} 30. Rg1 {[%clk 0:01:33.2]} 30... Kf8
{[%clk 0:00:48.1]} 31. Qxg7+ {[%clk 0:01:31.5]} 31... Ke8 {[%clk 0:00:48.2]} 32.
Rh1 {[%clk 0:01:23.7]} 32... Nf8 {[%clk 0:00:36.3]} 33. Rh8 {[%clk 0:01:17.4]}
1-0

[Event "*** Titled Tuesday Blitz"]
[Site "Chess.com"]
[Date "2020.04.07"]
[Round "7"]
[White "jk13"]
[Black "nihalsarin"]
[Result "1/2-1/2"]
[WhiteElo "2836"]
[BlackElo "3071"]
[TimeControl "180+1"]
[EndTime "14:17:33 PDT"]
[Termination "Game drawn by repetition"]

1. e4 {[%clk 0:03:00.9]} 1... c6 {[%clk 0:02:54.6]} 2. Nc3 {[%clk 0:03:00.7]}
2... d5 {[%clk 0:02:52.2]} 3. Nf3 {[%clk 0:03:01.6]} 3... g6 {[%clk 0:02:52.4]}
4. d4 {[%clk 0:03:01.4]} 4... Bg7 {[%clk 0:02:50.3]} 5. h3 {[%clk 0:03:02]} 5...
dxe4 {[%clk 0:02:50.2]} 6. Nxe4 {[%clk 0:03:02.9]} 6... Nf6 {[%clk 0:02:50.7]}
7. Nxf6+ {[%clk 0:03:03]} 7... exf6 {[%clk 0:02:51.6]} 8. Bc4 {[%clk 0:03:03.2]}
8... O-O {[%clk 0:02:51.9]} 9. O-O {[%clk 0:03:03.9]} 9... Nd7 {[%clk
0:02:52.5]} 10. c3 {[%clk 0:03:03.6]} 10... Nb6 {[%clk 0:02:52.8]} 11. Bb3
{[%clk 0:03:04]} 11... a5 {[%clk 0:02:53.3]} 12. a4 {[%clk 0:03:04]} 12... Re8
{[%clk 0:02:51.3]} 13. Re1 {[%clk 0:03:03.8]} 13... Bf5 {[%clk 0:02:40.4]} 14.
Bf4 {[%clk 0:02:59.2]} 14... Qd7 {[%clk 0:02:38.6]} 15. Qd2 {[%clk 0:02:58.3]}
15... Be6 {[%clk 0:02:31.6]} 16. Bxe6 {[%clk 0:02:52.6]} 16... Rxe6 {[%clk
0:02:31.7]} 17. b3 {[%clk 0:02:53]} 17... Nd5 {[%clk 0:02:24.4]} 18. Bg3 {[%clk
0:02:47.7]} 18... Rae8 {[%clk 0:02:18.1]} 19. Rxe6 {[%clk 0:02:47.8]} 19... Rxe6
{[%clk 0:02:19]} 20. Re1 {[%clk 0:02:47.5]} 20... Bf8 {[%clk 0:02:18.8]} 21.
Rxe6 {[%clk 0:02:45.7]} 21... Qxe6 {[%clk 0:02:19.7]} 22. c4 {[%clk 0:02:40.1]}
22... Nb4 {[%clk 0:02:19]} 23. Bc7 {[%clk 0:02:23.5]} 23... Qf5 {[%clk 0:02:19]}
24. Qe3 {[%clk 0:02:20.3]} 24... Nc2 {[%clk 0:01:31]} 25. Qe2 {[%clk 0:02:00.1]}
25... Kg7 {[%clk 0:01:00.8]} 26. g4 {[%clk 0:01:48.6]} 26... Qd7 {[%clk
0:01:00.6]} 27. Bb6 {[%clk 0:01:37.4]} 27... Nb4 {[%clk 0:01:00.8]} 28. Bxa5
{[%clk 0:01:37.7]} 28... h5 {[%clk 0:00:52.5]} 29. Bxb4 {[%clk 0:01:33]} 29...
Bxb4 {[%clk 0:00:51.9]} 30. gxh5 {[%clk 0:01:29]} 30... Qxh3 {[%clk 0:00:51.3]}
31. hxg6 {[%clk 0:01:29.6]} 31... Qg4+ {[%clk 0:00:48.7]} 32. Kf1 {[%clk
0:01:27.2]} 32... Qh3+ {[%clk 0:00:48.8]} 33. Kg1 {[%clk 0:01:27.2]} 33... Qg4+
{[%clk 0:00:49.4]} 34. Kh1 {[%clk 0:01:26.4]} 34... Qh5+ {[%clk 0:00:49.3]} 35.
Kg2 {[%clk 0:01:21.9]} 35... Qxg6+ {[%clk 0:00:33.3]} 36. Kh3 {[%clk 0:01:11.1]}
36... Qh5+ {[%clk 0:00:33.2]} 37. Kg2 {[%clk 0:01:10.3]} 37... Qg4+ {[%clk
0:00:33.1]} 38. Kh1 {[%clk 0:01:07.9]} 38... Qh5+ {[%clk 0:00:32.7]} 39. Kg2
{[%clk 0:01:08]} 39... Qg4+ {[%clk 0:00:33]} 40. Kf1 {[%clk 0:01:07.8]} 40...
Qh3+ {[%clk 0:00:33.2]} 41. Kg1 {[%clk 0:01:07.2]} 41... Qg4+ {[%clk 0:00:33.9]}
42. Kh1 {[%clk 0:01:06.9]} 42... Qh5+ {[%clk 0:00:33.9]} 43. Kg2 {[%clk
0:01:07]} 1/2-1/2

[Event "*** Titled Tuesday Blitz"]
[Site "Chess.com"]
[Date "2020.04.07"]
[Round "7"]
[White "chabo96"]
[Black "GMNeiksans"]
[Result "0-1"]
[WhiteElo "2593"]
[BlackElo "2838"]
[TimeControl "180+1"]
[EndTime "14:17:36 PDT"]
[Termination "GMNeiksans won by resignation"]

1. e4 {[%clk 0:03:00.9]} 1... c5 {[%clk 0:02:59.1]} 2. a3 {[%clk 0:03:00.9]}
2... g6 {[%clk 0:02:55.5]} 3. Bc4 {[%clk 0:02:59.9]} 3... Bg7 {[%clk 0:02:54.7]}
4. Nc3 {[%clk 0:03:00.2]} 4... e6 {[%clk 0:02:53.4]} 5. Ba2 {[%clk 0:02:57.1]}
5... Nc6 {[%clk 0:02:52.1]} 6. d3 {[%clk 0:02:57.4]} 6... Nge7 {[%clk
0:02:51.1]} 7. h4 {[%clk 0:02:57.5]} 7... h6 {[%clk 0:02:47.7]} 8. h5 {[%clk
0:02:57.5]} 8... g5 {[%clk 0:02:48]} 9. f4 {[%clk 0:02:58]} 9... gxf4 {[%clk
0:02:47.2]} 10. Bxf4 {[%clk 0:02:58.9]} 10... d6 {[%clk 0:02:36.8]} 11. Nf3
{[%clk 0:02:55.6]} 11... Nd4 {[%clk 0:02:27]} 12. Qd2 {[%clk 0:02:50.6]} 12...
Nec6 {[%clk 0:02:22.3]} 13. O-O {[%clk 0:02:43.6]} 13... b6 {[%clk 0:02:15.4]}
14. Nxd4 {[%clk 0:02:24.8]} 14... Nxd4 {[%clk 0:02:15.3]} 15. Qf2 {[%clk
0:02:18.2]} 15... O-O {[%clk 0:02:03.2]} 16. Qg3 {[%clk 0:02:12.2]} 16... Kh8
{[%clk 0:01:24.6]} 17. Bxd6 {[%clk 0:02:10.4]} 17... Rg8 {[%clk 0:01:25]} 18.
Rxf7 {[%clk 0:02:07.6]} 18... Nf5 {[%clk 0:01:25.1]} 19. exf5 {[%clk 0:01:18.5]}
19... Bd4+ {[%clk 0:01:24.7]} 20. Kh2 {[%clk 0:00:46.1]} 20... Rxg3 {[%clk
0:01:24.1]} 21. Bxg3 {[%clk 0:00:46.7]} 21... Qg5 {[%clk 0:01:10.5]} 22. Kh3
{[%clk 0:00:13.6]} 22... Qxh5+ {[%clk 0:01:08.7]} 23. Bh4 {[%clk 0:00:14.1]}
23... Qxf7 {[%clk 0:01:08.9]} 24. Rf1 {[%clk 0:00:10.6]} 24... Bf6 {[%clk
0:00:56]} 25. fxe6 {[%clk 0:00:09.5]} 25... Bxe6+ {[%clk 0:00:55.6]} 26. Kh2
{[%clk 0:00:09.4]} 26... Be5+ {[%clk 0:00:54.2]} 27. Kg1 {[%clk 0:00:09]} 27...
Bd4+ {[%clk 0:00:54.6]} 0-1